[Event "Titled Tuesday Blitz May 10 Early 2022"]
[White "Martinez Alcantara, Jose Eduardo"]
[Black "Wagner, Dennis"]
[WhiteFideId "3805662"]
[BlackFideId "24650684"]
[WhiteElo "2690"]
[BlackElo "2355"]
[Result "0-1"]
[Round "06"]
[TimeControl "180+1"]
[Date "2022.05.10"]
[WhiteClock "0:00:15"]
[BlackClock "0:00:10"]

1. e4 {[%clk 0:03:00]}  c5 {[%clk 0:02:57]} 2. Nf3 {[%clk 0:03:01]}  d6 {[%clk 0:02:58]} 3. c3 {[%clk 0:03:01]}  Nf6 {[%clk 0:02:57]} 4. h3 {[%clk 0:03:02]}  g6 {[%clk 0:02:56]} 5. Bd3 {[%clk 0:03:02]}  Bg7 {[%clk 0:02:56]} 6. Bc2 {[%clk 0:03:03]}  O-O {[%clk 0:02:57]} 7. d4 {[%clk 0:03:04]}  e5 {[%clk 0:02:49]} 8. dxe5 {[%clk 0:03:03]}  dxe5 {[%clk 0:02:50]} 9. Qxd8 {[%clk 0:02:55]}  Rxd8 {[%clk 0:02:50]} 10. Be3 {[%clk 0:02:54]}  b6 {[%clk 0:02:38]} 11. Nbd2 {[%clk 0:02:45]}  Bb7 {[%clk 0:02:38]} 12. O-O-O {[%clk 0:02:38]}  Nbd7 {[%clk 0:02:30]} 13. Rhe1 {[%clk 0:02:23]}  h6 {[%clk 0:02:26]} 14. Nh2 {[%clk 0:02:08]}  b5 {[%clk 0:02:17]} 15. Ng4 {[%clk 0:02:07]}  h5 {[%clk 0:02:02]} 16. Nh2 {[%clk 0:01:59]}  c4 {[%clk 0:02:00]} 17. Nhf3 {[%clk 0:01:59]}  Bf8 {[%clk 0:01:55]} 18. Bg5 {[%clk 0:01:54]}  Kg7 {[%clk 0:01:49]} 19. Nf1 {[%clk 0:01:48]}  Bc5 {[%clk 0:01:02]} 20. Ne3 {[%clk 0:01:47]}  Re8 {[%clk 0:00:51]} 21. Re2 {[%clk 0:01:39]}  Nb6 {[%clk 0:00:47]} 22. Nd2 {[%clk 0:01:05]}  Nfd7 {[%clk 0:00:44]} 23. Bh4 {[%clk 0:01:00]}  f6 {[%clk 0:00:44]} 24. Bg3 {[%clk 0:00:59]}  Nf8 {[%clk 0:00:38]} 25. f4 {[%clk 0:00:35]}  exf4 {[%clk 0:00:37]} 26. Bxf4 {[%clk 0:00:36]}  Ne6 {[%clk 0:00:37]} 27. Bh2 {[%clk 0:00:34]}  Rad8 {[%clk 0:00:38]} 28. Rde1 {[%clk 0:00:28]}  Ng5 {[%clk 0:00:37]} 29. e5 {[%clk 0:00:29]}  fxe5 {[%clk 0:00:36]} 30. Nef1 {[%clk 0:00:29]}  Nf7 {[%clk 0:00:34]} 31. Ne4 {[%clk 0:00:26]}  Be7 {[%clk 0:00:33]} 32. Nfd2 {[%clk 0:00:24]}  Nd5 {[%clk 0:00:33]} 33. Rf2 {[%clk 0:00:25]}  Nf4 {[%clk 0:00:33]} 34. Ref1 {[%clk 0:00:23]}  Ng5 {[%clk 0:00:31]} 35. Kb1 {[%clk 0:00:22]}  Nge6 {[%clk 0:00:31]} 36. h4 {[%clk 0:00:21]}  Rf8 {[%clk 0:00:30]} 37. Rf3 {[%clk 0:00:20]}  Nc5 {[%clk 0:00:26]} 38. Re3 {[%clk 0:00:20]}  Nfd3 {[%clk 0:00:24]} 39. Rd1 {[%clk 0:00:13]}  Nxe4 {[%clk 0:00:23]} 40. Nxe4 {[%clk 0:00:14]}  Bxh4 {[%clk 0:00:23]} 41. Bxd3 {[%clk 0:00:13]}  Rxd3 {[%clk 0:00:23]} 42. Bxe5+ {[%clk 0:00:14]}  Kh7 {[%clk 0:00:22]} 43. Rdxd3 {[%clk 0:00:14]}  cxd3 {[%clk 0:00:23]} 44. Kc1 {[%clk 0:00:11]}  Bxe4 {[%clk 0:00:18]} 45. Rxe4 {[%clk 0:00:12]}  Bg5+ {[%clk 0:00:18]} 46. Kd1 {[%clk 0:00:12]}  Rf1+ {[%clk 0:00:16]} 47. Re1 {[%clk 0:00:11]}  Rf2 {[%clk 0:00:16]} 48. Re4 {[%clk 0:00:11]}  Rxg2 {[%clk 0:00:13]} 49. Bd4 {[%clk 0:00:11]}  Rxb2 {[%clk 0:00:11]} 50. Ke1 {[%clk 0:00:12]}  d2+ {[%clk 0:00:10]} 51. Ke2 {[%clk 0:00:12]}  Rb1 {[%clk 0:00:11]} 52. Re8 {[%clk 0:00:13]}  d1=Q+ {[%clk 0:00:10]} 53. Kf2 {[%clk 0:00:14]}  Qf1+ {[%clk 0:00:10]} 54. Kg3 {[%clk 0:00:14]}  Bf4+ {[%clk 0:00:10]} 55. Kh4 {[%clk 0:00:15]}  Qh1# {[%clk 0:00:10]} 0-1


[Site "https://www.chess.com"]

[Event "Titled Tuesday Blitz May 10 Early 2022"]
[White "Melian, Juan Sebastian"]
[Black "Morefield, Jason"]
[WhiteFideId "3706575"]
[BlackFideId "30920825"]
[WhiteElo "1851"]
[BlackElo "2171"]
[Result "1-0"]
[Round "06"]
[TimeControl "180+1"]
[Date "2022.05.11"]
[WhiteClock "0:00:09"]
[BlackClock "0:00:08"]

1. c4 {[%clk 0:03:00]}  Nf6 {[%clk 0:02:58]} 2. Nc3 {[%clk 0:03:01]}  b6 {[%clk 0:02:58]} 3. Nf3 {[%clk 0:03:00]}  Bb7 {[%clk 0:02:58]} 4. e3 {[%clk 0:03:01]}  g6 {[%clk 0:02:57]} 5. d4 {[%clk 0:03:01]}  Bg7 {[%clk 0:02:58]} 6. b3 {[%clk 0:03:01]}  O-O {[%clk 0:02:57]} 7. Bb2 {[%clk 0:03:02]}  c5 {[%clk 0:02:58]} 8. Be2 {[%clk 0:03:02]}  cxd4 {[%clk 0:02:58]} 9. Qxd4 {[%clk 0:03:02]}  Ne4 {[%clk 0:02:48]} 10. Qd3 {[%clk 0:02:51]}  Nc5 {[%clk 0:02:48]} 11. Qc2 {[%clk 0:02:51]}  Nc6 {[%clk 0:02:47]} 12. a3 {[%clk 0:02:48]}  a5 {[%clk 0:02:43]} 13. O-O {[%clk 0:02:43]}  f5 {[%clk 0:02:35]} 14. Rad1 {[%clk 0:02:41]}  e6 {[%clk 0:02:26]} 15. Nb5 {[%clk 0:02:33]}  Bxb2 {[%clk 0:02:22]} 16. Qxb2 {[%clk 0:02:33]}  Qe7 {[%clk 0:02:17]} 17. Nd6 {[%clk 0:02:32]}  Rab8 {[%clk 0:02:00]} 18. b4 {[%clk 0:02:29]}  axb4 {[%clk 0:02:00]} 19. axb4 {[%clk 0:02:30]}  Ne4 {[%clk 0:01:59]} 20. Nxb7 {[%clk 0:02:06]}  Rxb7 {[%clk 0:02:00]} 21. Rb1 {[%clk 0:02:00]}  Qg7 {[%clk 0:01:43]} 22. Qxg7+ {[%clk 0:01:44]}  Kxg7 {[%clk 0:01:44]} 23. Rfc1 {[%clk 0:01:44]}  Kf6 {[%clk 0:01:33]} 24. Nd4 {[%clk 0:01:43]}  Rc8 {[%clk 0:00:46]} 25. Bf3 {[%clk 0:01:29]}  Nd2 {[%clk 0:00:34]} 26. Bxc6 {[%clk 0:01:23]}  dxc6 {[%clk 0:00:33]} 27. Rb2 {[%clk 0:01:23]}  Ne4 {[%clk 0:00:31]} 28. Ra2 {[%clk 0:01:12]}  c5 {[%clk 0:00:27]} 29. bxc5 {[%clk 0:01:11]}  Rxc5 {[%clk 0:00:28]} 30. Nb3 {[%clk 0:00:58]}  Rc8 {[%clk 0:00:26]} 31. f3 {[%clk 0:00:54]}  Nd6 {[%clk 0:00:24]} 32. Nd2 {[%clk 0:00:17]}  Rbc7 {[%clk 0:00:19]} 33. Rb2 {[%clk 0:00:16]}  b5 {[%clk 0:00:17]} 34. Rbc2 {[%clk 0:00:10]}  bxc4 {[%clk 0:00:15]} 35. Nb1 {[%clk 0:00:09]}  Rb8 {[%clk 0:00:12]} 36. Nd2 {[%clk 0:00:09]}  Rb4 {[%clk 0:00:10]} 37. Kf2 {[%clk 0:00:08]}  e5 {[%clk 0:00:10]} 38. Ke2 {[%clk 0:00:08]}  Ke6 {[%clk 0:00:10]} 39. e4 {[%clk 0:00:07]}  f4 {[%clk 0:00:09]} 40. Nb1 {[%clk 0:00:07]}  Nb5 {[%clk 0:00:09]} 41. Rd2 {[%clk 0:00:06]}  Nd4+ {[%clk 0:00:09]} 42. Kd1 {[%clk 0:00:06]}  Rcb7 {[%clk 0:00:08]} 43. Nc3 {[%clk 0:00:06]}  Rb3 {[%clk 0:00:08]} 44. Nd5 {[%clk 0:00:07]}  Rb1 {[%clk 0:00:04]} 45. Ra2 {[%clk 0:00:03]}  Rxc1+ {[%clk 0:00:04]} 46. Kxc1 {[%clk 0:00:04]}  Rd7 {[%clk 0:00:03]} 47. Ra6+ {[%clk 0:00:04]}  Rd6 {[%clk 0:00:04]} 48. Ra7 {[%clk 0:00:03]}  Nc6 {[%clk 0:00:04]} 49. Rc7 {[%clk 0:00:03]}  g5 {[%clk 0:00:03]} 50. Rxh7 {[%clk 0:00:03]}  Rxd5 {[%clk 0:00:03]} 51. exd5+ {[%clk 0:00:04]}  Kxd5 {[%clk 0:00:04]} 52. Rg7 {[%clk 0:00:04]}  Nd4 {[%clk 0:00:04]} 53. Rxg5 {[%clk 0:00:05]}  c3 {[%clk 0:00:04]} 54. Rg8 {[%clk 0:00:04]}  Kc4 {[%clk 0:00:05]} 55. Rc8+ {[%clk 0:00:04]}  Kd3 {[%clk 0:00:05]} 56. Rd8 {[%clk 0:00:05]}  c2 {[%clk 0:00:04]} 57. h4 {[%clk 0:00:05]}  Kc3 {[%clk 0:00:04]} 58. Rc8+ {[%clk 0:00:05]}  Kd3 {[%clk 0:00:05]} 59. Rd8 {[%clk 0:00:06]}  Kc3 {[%clk 0:00:05]} 60. Rc8+ {[%clk 0:00:06]}  Kd3 {[%clk 0:00:06]} 61. h5 {[%clk 0:00:06]}  Ne2+ {[%clk 0:00:06]} 62. Kb2 {[%clk 0:00:07]}  c1=Q+ {[%clk 0:00:04]} 63. Rxc1 {[%clk 0:00:07]}  Nxc1 {[%clk 0:00:04]} 64. Kxc1 {[%clk 0:00:07]}  Ke2 {[%clk 0:00:04]} 65. h6 {[%clk 0:00:08]}  Kf2 {[%clk 0:00:05]} 66. h7 {[%clk 0:00:08]}  Kxg2 {[%clk 0:00:06]} 67. h8=Q {[%clk 0:00:08]}  Kxf3 {[%clk 0:00:06]} 68. Qxe5 {[%clk 0:00:09]}  Kg3 {[%clk 0:00:06]} 69. Kd2 {[%clk 0:00:09]}  Kf3 {[%clk 0:00:07]} 70. Ke1 {[%clk 0:00:09]}  Kg3 {[%clk 0:00:07]} 71. Qc3+ {[%clk 0:00:08]}  f3 {[%clk 0:00:08]} 72. Kf1 {[%clk 0:00:08]}  Kg4 {[%clk 0:00:08]} 73. Kf2 {[%clk 0:00:09]} 1-0


[Site "https://www.chess.com"]

[Event "Titled Tuesday Blitz May 10 Early 2022"]
[White "Melikhov, Evgeny V."]
[Black "Martic, Ivan"]
[WhiteFideId "4122046"]
[BlackFideId "929301"]
[WhiteElo "1931"]
[BlackElo "2317"]
[Result "0-1"]
[Round "06"]
[TimeControl "180+1"]
[Date "2022.05.11"]
[WhiteClock "0:00:05"]
[BlackClock "0:00:09"]

1. d4 {[%clk 0:03:00]}  d5 {[%clk 0:02:59]} 2. c4 {[%clk 0:02:59]}  c6 {[%clk 0:02:59]} 3. Nc3 {[%clk 0:02:59]}  Nf6 {[%clk 0:03:00]} 4. e3 {[%clk 0:03:00]}  a6 {[%clk 0:02:59]} 5. c5 {[%clk 0:02:59]}  b6 {[%clk 0:02:52]} 6. cxb6 {[%clk 0:02:59]}  Nbd7 {[%clk 0:02:43]} 7. Nf3 {[%clk 0:02:56]}  Qxb6 {[%clk 0:02:40]} 8. Na4 {[%clk 0:02:51]}  Qb8 {[%clk 0:02:29]} 9. Bd2 {[%clk 0:02:48]}  e6 {[%clk 0:02:28]} 10. Rc1 {[%clk 0:02:46]}  Bb7 {[%clk 0:02:27]} 11. Qb3 {[%clk 0:02:34]}  Bd6 {[%clk 0:02:25]} 12. Be2 {[%clk 0:02:25]}  a5 {[%clk 0:02:21]} 13. O-O {[%clk 0:02:20]}  O-O {[%clk 0:02:21]} 14. Rc2 {[%clk 0:02:08]}  Ne4 {[%clk 0:02:20]} 15. h3 {[%clk 0:02:02]}  Rc8 {[%clk 0:02:04]} 16. Rfc1 {[%clk 0:02:01]}  Nxd2 {[%clk 0:01:59]} 17. Nxd2 {[%clk 0:01:57]}  e5 {[%clk 0:01:57]} 18. dxe5 {[%clk 0:01:55]}  Bxe5 {[%clk 0:01:58]} 19. Nc5 {[%clk 0:01:52]}  Nxc5 {[%clk 0:01:54]} 20. Rxc5 {[%clk 0:01:51]}  Bd6 {[%clk 0:01:51]} 21. R5c2 {[%clk 0:01:46]}  a4 {[%clk 0:01:44]} 22. Qc3 {[%clk 0:01:12]}  a3 {[%clk 0:01:35]} 23. b4 {[%clk 0:01:09]}  g6 {[%clk 0:01:22]} 24. Nb3 {[%clk 0:01:03]}  Ba6 {[%clk 0:01:08]} 25. Nc5 {[%clk 0:01:02]}  Bxe2 {[%clk 0:01:04]} 26. Rxe2 {[%clk 0:01:01]}  Qa7 {[%clk 0:00:59]} 27. e4 {[%clk 0:00:58]}  Bf8 {[%clk 0:00:54]} 28. e5 {[%clk 0:00:56]}  Bg7 {[%clk 0:00:53]} 29. Qf3 {[%clk 0:00:46]}  Re8 {[%clk 0:00:49]} 30. e6 {[%clk 0:00:44]}  Bb2 {[%clk 0:00:46]} 31. Rce1 {[%clk 0:00:42]}  Rf8 {[%clk 0:00:27]} 32. e7 {[%clk 0:00:40]}  Rfe8 {[%clk 0:00:27]} 33. Qg4 {[%clk 0:00:19]}  Bc3 {[%clk 0:00:21]} 34. Rc1 {[%clk 0:00:15]}  Bf6 {[%clk 0:00:19]} 35. Qd7 {[%clk 0:00:13]}  Qxd7 {[%clk 0:00:18]} 36. Nxd7 {[%clk 0:00:13]}  Bxe7 {[%clk 0:00:17]} 37. Rxc6 {[%clk 0:00:11]}  Bg5 {[%clk 0:00:13]} 38. Rxe8+ {[%clk 0:00:09]}  Rxe8 {[%clk 0:00:14]} 39. b5 {[%clk 0:00:09]}  Re1+ {[%clk 0:00:11]} 40. Kh2 {[%clk 0:00:09]}  Re2 {[%clk 0:00:12]} 41. Kg3 {[%clk 0:00:08]}  Rxa2 {[%clk 0:00:12]} 42. b6 {[%clk 0:00:08]}  Rb2 {[%clk 0:00:12]} 43. Rc8+ {[%clk 0:00:06]}  Kg7 {[%clk 0:00:12]} 44. Ra8 {[%clk 0:00:07]}  a2 {[%clk 0:00:12]} 45. Rxa2 {[%clk 0:00:06]}  Rxa2 {[%clk 0:00:11]} 46. b7 {[%clk 0:00:07]}  Rb2 {[%clk 0:00:10]} 47. b8=Q {[%clk 0:00:07]}  Rxb8 {[%clk 0:00:10]} 48. Nxb8 {[%clk 0:00:08]}  Kf6 {[%clk 0:00:11]} 49. Nc6 {[%clk 0:00:08]}  Ke6 {[%clk 0:00:10]} 50. Nd4+ {[%clk 0:00:08]}  Ke5 {[%clk 0:00:10]} 51. Nf3+ {[%clk 0:00:09]}  Kf5 {[%clk 0:00:10]} 52. Nd4+ {[%clk 0:00:07]}  Ke4 {[%clk 0:00:10]} 53. Nc6 {[%clk 0:00:08]}  Bf4+ {[%clk 0:00:09]} 54. Kg4 {[%clk 0:00:06]}  f5+ {[%clk 0:00:09]} 55. Kh4 {[%clk 0:00:07]}  d4 {[%clk 0:00:09]} 56. f3+ {[%clk 0:00:06]}  Kd5 {[%clk 0:00:09]} 57. Nb4+ {[%clk 0:00:06]}  Kc4 {[%clk 0:00:09]} 58. Nc2 {[%clk 0:00:06]}  d3 {[%clk 0:00:09]} 59. Ne1 {[%clk 0:00:05]}  d2 {[%clk 0:00:09]} 0-1


[Site "https://www.chess.com"]

[Event "Titled Tuesday Blitz May 10 Early 2022"]
[White "Mica, Marek"]
[Black "Tania, Sachdev"]
[WhiteFideId "382884"]
[BlackFideId "5007844"]
[WhiteElo "2100"]
[BlackElo "2280"]
[Result "0-1"]
[Round "06"]
[TimeControl "180+1"]
[Date "2022.05.11"]
[WhiteClock "0:00:13"]
[BlackClock "0:00:36"]

1. Nf3 {[%clk 0:02:55]}  Nf6 {[%clk 0:02:57]} 2. g3 {[%clk 0:02:54]}  b6 {[%clk 0:02:57]} 3. Bg2 {[%clk 0:02:54]}  Bb7 {[%clk 0:02:58]} 4. O-O {[%clk 0:02:54]}  e6 {[%clk 0:02:58]} 5. d4 {[%clk 0:02:54]}  c5 {[%clk 0:02:57]} 6. c4 {[%clk 0:02:51]}  cxd4 {[%clk 0:02:55]} 7. Qxd4 {[%clk 0:02:51]}  Nc6 {[%clk 0:02:55]} 8. Qf4 {[%clk 0:02:50]}  Be7 {[%clk 0:02:53]} 9. b3 {[%clk 0:02:48]}  d6 {[%clk 0:02:51]} 10. Rd1 {[%clk 0:02:47]}  Qc7 {[%clk 0:02:51]} 11. Ba3 {[%clk 0:02:42]}  e5 {[%clk 0:02:44]} 12. Qd2 {[%clk 0:02:37]}  Ne4 {[%clk 0:02:32]} 13. Qc2 {[%clk 0:02:33]}  Nc5 {[%clk 0:02:31]} 14. Nc3 {[%clk 0:02:32]}  O-O {[%clk 0:02:23]} 15. Rd2 {[%clk 0:02:27]}  a5 {[%clk 0:02:16]} 16. Rad1 {[%clk 0:02:14]}  Rad8 {[%clk 0:02:08]} 17. Nd5 {[%clk 0:02:03]}  Qb8 {[%clk 0:02:08]} 18. Nxb6 {[%clk 0:01:44]}  e4 {[%clk 0:01:47]} 19. Ne1 {[%clk 0:01:40]}  Bg5 {[%clk 0:01:43]} 20. e3 {[%clk 0:01:38]}  Ne5 {[%clk 0:01:42]} 21. Bxc5 {[%clk 0:01:32]}  dxc5 {[%clk 0:01:40]} 22. Nd5 {[%clk 0:01:32]}  f5 {[%clk 0:01:35]} 23. Qc3 {[%clk 0:01:17]}  Nc6 {[%clk 0:01:33]} 24. f4 {[%clk 0:01:11]}  Bh6 {[%clk 0:01:04]} 25. g4 {[%clk 0:01:04]}  Nb4 {[%clk 0:00:57]} 26. gxf5 {[%clk 0:00:56]}  Nxd5 {[%clk 0:00:55]} 27. cxd5 {[%clk 0:00:56]}  Rxf5 {[%clk 0:00:51]} 28. Bxe4 {[%clk 0:00:54]}  Rf6 {[%clk 0:00:45]} 29. Qxc5 {[%clk 0:00:41]}  Bxf4 {[%clk 0:00:42]} 30. exf4 {[%clk 0:00:17]}  Qxf4 {[%clk 0:00:43]} 31. Rf2 {[%clk 0:00:17]}  Qg4+ {[%clk 0:00:41]} 32. Bg2 {[%clk 0:00:16]}  Qxd1 {[%clk 0:00:39]} 33. Rxf6 {[%clk 0:00:16]}  gxf6 {[%clk 0:00:36]} 34. Qe7 {[%clk 0:00:16]}  Qd4+ {[%clk 0:00:36]} 35. Kf1 {[%clk 0:00:15]}  Ba6+ {[%clk 0:00:34]} 36. Nd3 {[%clk 0:00:13]}  Bxd3+ {[%clk 0:00:34]} 37. Ke1 {[%clk 0:00:13]}  Qe5+ {[%clk 0:00:35]} 38. Qxe5 {[%clk 0:00:13]}  fxe5 {[%clk 0:00:36]} 0-1


[Site "https://www.chess.com"]

[Event "Titled Tuesday Blitz May 10 Early 2022"]
[White "Mikhalsky, Vladimir"]
[Black "Petre, Nad-Titus"]
[WhiteFideId "14144352"]
[BlackFideId "1204165"]
[WhiteElo "2301"]
[BlackElo "2354"]
[Result "1-0"]
[Round "06"]
[TimeControl "180+1"]
[Date "2022.05.11"]
[WhiteClock "0:00:43"]
[BlackClock "0:00:18"]

1. d4 {[%clk 0:03:00]}  Nf6 {[%clk 0:03:00]} 2. c4 {[%clk 0:02:58]}  c5 {[%clk 0:03:00]} 3. d5 {[%clk 0:02:58]}  b5 {[%clk 0:03:00]} 4. cxb5 {[%clk 0:02:58]}  a6 {[%clk 0:03:00]} 5. bxa6 {[%clk 0:02:57]}  Bxa6 {[%clk 0:03:01]} 6. Nc3 {[%clk 0:02:57]}  d6 {[%clk 0:03:02]} 7. Nf3 {[%clk 0:02:55]}  g6 {[%clk 0:03:02]} 8. g3 {[%clk 0:02:56]}  Bg7 {[%clk 0:03:02]} 9. Bg2 {[%clk 0:02:56]}  O-O {[%clk 0:03:03]} 10. O-O {[%clk 0:02:56]}  Nbd7 {[%clk 0:03:01]} 11. Re1 {[%clk 0:02:57]}  Qa5 {[%clk 0:02:58]} 12. e4 {[%clk 0:02:56]}  Rfb8 {[%clk 0:02:54]} 13. e5 {[%clk 0:02:53]}  Ne8 {[%clk 0:02:27]} 14. e6 {[%clk 0:02:47]}  fxe6 {[%clk 0:02:11]} 15. dxe6 {[%clk 0:02:47]}  Nb6 {[%clk 0:02:04]} 16. Ng5 {[%clk 0:02:44]}  Bb7 {[%clk 0:01:59]} 17. Bxb7 {[%clk 0:02:26]}  Rxb7 {[%clk 0:01:59]} 18. Qf3 {[%clk 0:02:25]}  Rab8 {[%clk 0:01:42]} 19. Qf7+ {[%clk 0:02:22]}  Kh8 {[%clk 0:01:43]} 20. Bd2 {[%clk 0:02:16]}  Nc4 {[%clk 0:01:35]} 21. Red1 {[%clk 0:01:38]}  Nxd2 {[%clk 0:01:34]} 22. Rxd2 {[%clk 0:01:38]}  Nf6 {[%clk 0:01:35]} 23. Rad1 {[%clk 0:01:18]}  Qa6 {[%clk 0:00:56]} 24. Nd5 {[%clk 0:01:09]}  Nxd5 {[%clk 0:00:53]} 25. Rxd5 {[%clk 0:01:09]}  Rf8 {[%clk 0:00:35]} 26. Rxd6 {[%clk 0:01:08]}  exd6 {[%clk 0:00:34]} 27. e7 {[%clk 0:01:08]}  Rbb8 {[%clk 0:00:22]} 28. exf8=Q+ {[%clk 0:00:56]}  Rxf8 {[%clk 0:00:23]} 29. Qd5 {[%clk 0:00:47]}  Qa7 {[%clk 0:00:21]} 30. Qxd6 {[%clk 0:00:44]}  Bd4 {[%clk 0:00:18]} 31. Qxf8# {[%clk 0:00:43]} 1-0


[Site "https://www.chess.com"]

[Event "Titled Tuesday Blitz May 10 Early 2022"]
[White "Mikhnenko, Alexander"]
[Black "Sailer, Mike"]
[WhiteFideId "34143014"]
[BlackFideId "2012901"]
[WhiteElo "2117"]
[BlackElo "2109"]
[Result "1-0"]
[Round "06"]
[TimeControl "180+1"]
[Date "2022.05.11"]
[WhiteClock "0:00:11"]
[BlackClock "0:00:08"]

1. e4 {[%clk 0:03:00]}  d6 {[%clk 0:03:00]} 2. d4 {[%clk 0:02:59]}  g6 {[%clk 0:02:59]} 3. Nc3 {[%clk 0:02:57]}  Bg7 {[%clk 0:03:00]} 4. Be3 {[%clk 0:02:56]}  a6 {[%clk 0:02:56]} 5. f3 {[%clk 0:02:56]}  b5 {[%clk 0:02:56]} 6. Qd2 {[%clk 0:02:55]}  Bb7 {[%clk 0:02:56]} 7. O-O-O {[%clk 0:02:54]}  Nd7 {[%clk 0:02:56]} 8. h4 {[%clk 0:02:51]}  h5 {[%clk 0:02:51]} 9. Nh3 {[%clk 0:02:51]}  Nb6 {[%clk 0:02:45]} 10. Ng5 {[%clk 0:02:49]}  e6 {[%clk 0:02:36]} 11. d5 {[%clk 0:02:44]}  Bxc3 {[%clk 0:02:07]} 12. Qxc3 {[%clk 0:02:43]}  e5 {[%clk 0:02:07]} 13. Bxb6 {[%clk 0:02:40]}  cxb6 {[%clk 0:02:07]} 14. Qe3 {[%clk 0:02:40]}  Rc8 {[%clk 0:01:47]} 15. f4 {[%clk 0:02:36]}  Nf6 {[%clk 0:01:44]} 16. Bd3 {[%clk 0:02:36]}  Ng4 {[%clk 0:01:44]} 17. Qf3 {[%clk 0:02:35]}  exf4 {[%clk 0:01:17]} 18. Qxf4 {[%clk 0:02:34]}  Ne5 {[%clk 0:01:18]} 19. Kb1 {[%clk 0:02:31]}  Qe7 {[%clk 0:01:10]} 20. Rhf1 {[%clk 0:02:30]}  Rc7 {[%clk 0:01:05]} 21. Rd2 {[%clk 0:02:23]}  Kd8 {[%clk 0:01:05]} 22. Qe3 {[%clk 0:02:10]}  Rc5 {[%clk 0:00:59]} 23. Qd4 {[%clk 0:02:06]}  Rf8 {[%clk 0:00:49]} 24. Rdf2 {[%clk 0:01:53]}  Ke8 {[%clk 0:00:36]} 25. Nh7 {[%clk 0:01:46]}  Rh8 {[%clk 0:00:35]} 26. Ng5 {[%clk 0:01:45]}  Rf8 {[%clk 0:00:36]} 27. Rf6 {[%clk 0:01:38]}  a5 {[%clk 0:00:33]} 28. b3 {[%clk 0:01:28]}  b4 {[%clk 0:00:31]} 29. Ne6 {[%clk 0:01:24]}  fxe6 {[%clk 0:00:31]} 30. Rxf8+ {[%clk 0:01:24]}  Qxf8 {[%clk 0:00:31]} 31. Rxf8+ {[%clk 0:01:24]}  Kxf8 {[%clk 0:00:32]} 32. dxe6 {[%clk 0:01:24]}  Ke7 {[%clk 0:00:32]} 33. Qe3 {[%clk 0:01:23]}  Kxe6 {[%clk 0:00:32]} 34. Qh6 {[%clk 0:01:22]}  Bc8 {[%clk 0:00:28]} 35. Qf8 {[%clk 0:01:20]}  Kd7 {[%clk 0:00:28]} 36. Qg7+ {[%clk 0:01:19]}  Kc6 {[%clk 0:00:27]} 37. Qg8 {[%clk 0:01:19]}  Bd7 {[%clk 0:00:26]} 38. Qa8+ {[%clk 0:01:18]}  Kc7 {[%clk 0:00:27]} 39. Ba6 {[%clk 0:01:18]}  Bc6 {[%clk 0:00:28]} 40. Qa7+ {[%clk 0:01:17]}  Kd8 {[%clk 0:00:25]} 41. Qxb6+ {[%clk 0:01:17]}  Kd7 {[%clk 0:00:24]} 42. Bb7 {[%clk 0:01:11]}  Bxb7 {[%clk 0:00:23]} 43. Qxb7+ {[%clk 0:01:12]}  Ke6 {[%clk 0:00:23]} 44. Qg7 {[%clk 0:01:09]}  Rc6 {[%clk 0:00:18]} 45. Qg8+ {[%clk 0:01:08]}  Ke7 {[%clk 0:00:17]} 46. g3 {[%clk 0:01:06]}  Rc5 {[%clk 0:00:16]} 47. Kb2 {[%clk 0:01:05]}  Rc3 {[%clk 0:00:15]} 48. Qa8 {[%clk 0:00:59]}  Rc5 {[%clk 0:00:15]} 49. Qa7+ {[%clk 0:00:56]}  Ke6 {[%clk 0:00:16]} 50. Qa8 {[%clk 0:00:49]}  Kf6 {[%clk 0:00:15]} 51. Qf8+ {[%clk 0:00:48]}  Ke6 {[%clk 0:00:16]} 52. Qe8+ {[%clk 0:00:49]}  Kf6 {[%clk 0:00:16]} 53. Qh8+ {[%clk 0:00:43]}  Ke6 {[%clk 0:00:17]} 54. Qh6 {[%clk 0:00:43]}  Kf6 {[%clk 0:00:16]} 55. Qg5+ {[%clk 0:00:42]}  Ke6 {[%clk 0:00:16]} 56. Qf4 {[%clk 0:00:42]}  Rc3 {[%clk 0:00:14]} 57. a4 {[%clk 0:00:37]}  Rc5 {[%clk 0:00:13]} 58. Qf8 {[%clk 0:00:36]}  Rc3 {[%clk 0:00:07]} 59. Qa8 {[%clk 0:00:34]}  Rc5 {[%clk 0:00:07]} 60. Qb8 {[%clk 0:00:32]}  Ke7 {[%clk 0:00:07]} 61. Qg8 {[%clk 0:00:30]}  Kd7 {[%clk 0:00:06]} 62. Qg7+ {[%clk 0:00:29]}  Ke6 {[%clk 0:00:07]} 63. Qg8+ {[%clk 0:00:28]}  Ke7 {[%clk 0:00:07]} 64. Qg7+ {[%clk 0:00:28]}  Ke6 {[%clk 0:00:08]} 65. Qa7 {[%clk 0:00:28]}  Kf6 {[%clk 0:00:08]} 66. c4 {[%clk 0:00:26]}  bxc3+ {[%clk 0:00:06]} 67. Kc2 {[%clk 0:00:25]}  Ke6 {[%clk 0:00:07]} 68. Qb6 {[%clk 0:00:25]}  Ke7 {[%clk 0:00:07]} 69. b4 {[%clk 0:00:24]}  axb4 {[%clk 0:00:07]} 70. Qxb4 {[%clk 0:00:24]}  Nc6 {[%clk 0:00:07]} 71. Qb7+ {[%clk 0:00:23]}  Ke6 {[%clk 0:00:07]} 72. Qc8+ {[%clk 0:00:23]}  Ke5 {[%clk 0:00:07]} 73. Qe8+ {[%clk 0:00:22]}  Kd4 {[%clk 0:00:07]} 74. Qh8+ {[%clk 0:00:20]}  Kxe4 {[%clk 0:00:07]} 75. Qe8+ {[%clk 0:00:19]}  Kd4 {[%clk 0:00:07]} 76. Qh8+ {[%clk 0:00:19]}  Kd5 {[%clk 0:00:08]} 77. Qg8+ {[%clk 0:00:17]}  Kd4 {[%clk 0:00:08]} 78. Qg7+ {[%clk 0:00:17]}  Kc4 {[%clk 0:00:08]} 79. Qf7+ {[%clk 0:00:15]}  d5 {[%clk 0:00:09]} 80. Qf1+ {[%clk 0:00:15]}  Kb4 {[%clk 0:00:09]} 81. Qb1+ {[%clk 0:00:13]}  Kxa4 {[%clk 0:00:09]} 82. Qb3+ {[%clk 0:00:13]}  Ka5 {[%clk 0:00:09]} 83. Qa3+ {[%clk 0:00:14]}  Kb5 {[%clk 0:00:09]} 84. Qa8 {[%clk 0:00:11]}  Nb4+ {[%clk 0:00:09]} 85. Kb3 {[%clk 0:00:11]}  c2 {[%clk 0:00:08]} 86. Qb7+ {[%clk 0:00:10]}  Ka5 {[%clk 0:00:07]} 87. Qxb4+ {[%clk 0:00:10]}  Ka6 {[%clk 0:00:08]} 88. Qxc5 {[%clk 0:00:11]} 1-0


[Site "https://www.chess.com"]